[Event "ITT 1st Parada Jamundi 2022"]
[Site "Jamundi Valle"]
[Date "2022.12.07"]
[Round "4.9"]
[White "Zuluaga Mancilla, Cesar"]
[Black "Arango Arenas, Juan Camilo"]
[Result "1-0"]
[ECO "E61"]
[WhiteElo "2230"]
[BlackElo "2202"]
[Annotator "TA"]
[PlyCount "89"]
[EventDate "2022.12.05"]
[EventType "swiss"]
[EventCountry "COL"]
[SourceTitle "playchess.com"]
[Source "ChessBase"]
[SourceQuality "1"]
[TimeControl "5400+30"]

{[%evp 10,89,21,18,19,9,29,23,24,23,27,4,11,-12,12,5,68,16,28,14,14,0,0,0,-22,-4,0,-43,-50,-60,-63,-45,-27,-23,0,0,0,-7,23,0,0,0,0,0,0,0,0,0,0,0,0,0,525,526,521,511,507,515,508,508,1018,1005,1138,892,1310,590,1201,1037,1077,997,1039,994,936,933,1675,1684,1438,1291,1398,797,1108,1074]} 1. d4 {[%emt 0:02:30]} g6 {[%emt 0:00:29]} 2. Nf3 {[%emt 0:00:17]} Bg7 {[%emt 0:00:14]} 3. e3 {[%emt 0:01:56]} Nf6 {[%emt 0:06:23]} 4. c4 {[%emt 0:00:37]} c5 {[%emt 0:00:11]} 5. Nc3 {[%emt 0:00:07]} O-O {[%emt 0:00:07]} 6. d5 {[%emt 0:03:31]} e6 {[%emt 0:00:24] E61: King's Indian: Early deviations for White, including Smyslov System.} 7. Be2 {[%emt 0:00:56]} exd5 {[%emt 0:00:50] 7...d6 is the modern continuation.} 8. cxd5 {[%emt 0:00:05]} (8. Nxd5 Nxd5 9. cxd5 (9. Qxd5 d6 $15) 9... d6 $11) 8... d6 {[%emt 0:00:23] White has an edge.} 9. O-O {[%emt 0:00:09]} Na6 {[%emt 0:00:38][%cal Bb8a6,Ba6c7,Bc7b5][%mdl 32]} 10. Re1 {[%emt 0:00:35]} Nc7 {[%emt 0:11:43]} 11. a4 {[%emt 0:05:15]} Rb8 {[%emt 0:01:09]} 12. e4 {[%emt 0:02:12] [#]} a6 $146 {[%emt 0:06:02]} (12... Re8 $11) ({Predecessor:} 12... b6 13. Nd2 a6 14. f4 b5 15. axb5 axb5 16. Bf3 b4 17. Ne2 Ng4 18. Nc4 Nb5 {0-1 (30) Lindblom,R (1767)-Aulin Jansson,J (2198) Asker 2013}) 13. a5 {[%emt 0:02:44] White is more active.} ({White should play} 13. Bf4 $14) 13... b5 {[%emt 0:03:08]} 14. axb6 $1 {[%emt 0:00:06]} Rxb6 {[%emt 0:00:03]} 15. Nd2 {[%emt 0:02:27]} Nb5 {[%emt 0:02:27]} 16. Na4 {[%emt 0:05:53]} Rb8 {[%emt 0:09:38]} 17. h3 {[%emt 0:01:44]} Re8 {[%emt 0:04:45]} 18. Bd3 {[%emt 0:00:20]} Nd7 {[%emt 0:00:19]} 19. Nc4 {[%emt 0:01:01]} Ne5 {[%emt 0:00:24]} 20. Bf4 {[%emt 0:00:43]} Nxc4 {[%emt 0:16:05]} (20... Nd4 {feels hotter.} 21. Bxe5 Bxe5 22. Bf1 Bd7) 21. Bxc4 {[%emt 0:00:07]} Be5 {[%emt 0:00:03]} 22. Bxe5 {[%emt 0:05:56]} Rxe5 {[%emt 0:00:20]} 23. f4 {[%emt 0:00:27]} Rh5 {[%emt 0:00:37]} 24. Qd3 {[%emt 0:07:28]} (24. Bxb5 {simplifies} axb5 25. Nc3 Rh4 26. Qf3) 24... Qh4 {[%emt 0:05:20]} 25. Rf1 {[%emt 0:00:42]} Nd4 {[%emt 0:07:22]} 26. b3 {[%emt 0:04:10]} (26. Bxa6 Bd7 $15) 26... g5 $1 {[%emt 0:01:32]} 27. f5 {[%emt 0:06:07]} g4 {[%emt 0:05:08][%cal Rg4h3]} 28. Rf4 $36 {[%emt 0:07:44][%mdl 2048] Black is under pressure.} Nf3+ {[%emt 0:00:31]} 29. Rxf3 $1 {[%emt 0:01:09]} gxf3 {[%emt 0:00:06]} 30. Qxf3 {[%emt 0:00:10]} Rxf5 $2 {[%emt 0:01:38][%mdl 8192] Black is now going downhill.} 31. exf5 $18 {[%emt 0:00:44] White is clearly winning.} Qd4+ {[%emt 0:00:04]} 32. Kh2 {[%emt 0:00:09] [#] Strongly threatening Qg3+.} Qxa1 {[%emt 0:00:03]} 33. Qg3+ {[%emt 0:00:20]} Qg7 {[%emt 0:06:41] Hoping for ...Qxg3+.} 34. Qxd6 {[%emt 0:00:08]} Rb7 {[%emt 0:05:07]} (34... Rb4 $142 35. Nxc5 (35. Bxa6 Bxa6 36. Qd8+ Qf8 $11) (35. Qxc5 Qe5+ 36. Kh1 Qe1+ 37. Kh2 Qe5+ 38. Kh1 Qe1+ 39. Kh2 Qe5+ $11) 35... Qf8) 35. Nxc5 {[%emt 0:01:31]} (35. Qxa6 Qe5+ 36. Kh1 Rb8 $15) 35... Ra7 {[%emt 0:00:05]} 36. Qb8 {[%emt 0:02:50]} (36. Bxa6 Bxa6 37. Qb8+ (37. Nxa6 Rd7 $11) 37... Bc8 $11) 36... Qd4 {[%emt 0:00:05]} 37. Qxc8+ {[%emt 0:00:48]} Kg7 {[%emt 0:00:04]} 38. f6+ {[%emt 0:01:03]} ({And not} 38. Nxa6 Qf4+ 39. g3 (39. Kh1 Qc1+ 40. Kh2 Qf4+ 41. g3 Qf2+ 42. Kh1 Qf3+ 43. Kh2 Qf2+ 44. Kh1 Qf3+ 45. Kh2 Qf2+ $11) 39... Qf2+ 40. Kh1 Qf3+ 41. Kh2 Qf2+ 42. Kh1 Qf3+ 43. Kh2 Qf2+ $11) 38... Qxf6 {[%emt 0:00:02]} 39. Qg4+ {[%emt 0:00:26]} ({Stronger than} 39. Bxa6 Qf4+ 40. g3 (40. Kh1 Rc7 $17) 40... Qf2+ 41. Kh1 Qf3+ 42. Kh2 Qf2+ 43. Kh1 Qf3+ 44. Kh2 Qf2+ $11) 39... Kh8 {[%emt 0:00:38]} 40. Ne4 {[%emt 0:04:19]} Qe5+ {[%emt 0:00:40]} 41. Qg3 {[%emt 0:00:35]} Qxg3+ {[%emt 0:00:49]} 42. Kxg3 {[%emt 0:00:10]} Kg7 {[%emt 0:00:10]} 43. Kf4 {[%emt 0:00:11]} a5 {[%emt 0:00:29]} 44. Nc5 {[%emt 0:00:33] [#] Black must now prevent d6.} Kf6 {[%emt 0:00:28]} 45. d6 {[%emt 0:00:07] Weighted Error Value: White=0.10 (very precise) /Black=0.34} 1-0

[Event "ITT 1st Parada Jamundi 2022"]
[Site "Jamundi Valle"]
[Date "2022.12.07"]
[Round "4.10"]
[White "Lopez Rayo, Santiago"]
[Black "Londono Lopez, Donaldo"]
[Result "1-0"]
[ECO "B96"]
[WhiteElo "2300"]
[BlackElo "2055"]
[Annotator "TA"]
[PlyCount "53"]
[EventDate "2022.12.05"]
[EventType "swiss"]
[EventCountry "COL"]
[SourceTitle "playchess.com"]
[Source "ChessBase"]
[SourceQuality "1"]
[TimeControl "5400+30"]

{[%evp 24,53,58,22,26,16,48,-35,-35,-140,-104,-145,-94,-161,-189,-178,-181,-179,-43,-46,65,76,71,64,5215,5018,3093,1058,1056,1047,993,960]} 1. e4 {[%emt 0:00:04]} c5 {[%emt 0:00:26]} 2. Nf3 {[%emt 0:00:09]} d6 {[%emt 0:00:29]} 3. d4 {[%emt 0:00:16]} cxd4 {[%emt 0:00:25]} 4. Nxd4 {[%emt 0:00:09]} Nf6 {[%emt 0:00:20]} 5. Nc3 {[%emt 0:00:07]} a6 {[%emt 0:00:21]} 6. Bg5 {[%emt 0:00:23]} e6 {[%emt 0:00:32]} 7. f4 {[%emt 0:00:21]} Nc6 {[%emt 0:00:44]} 8. Nxc6 {[%emt 0:08:41]} bxc6 {[%emt 0:00:23]} 9. e5 {[%emt 0:02:38]} h6 {[%emt 0:00:38]} 10. Bh4 {[%emt 0:06:05]} g5 {[%emt 0:01:19]} 11. fxg5 {[%emt 0:05:42]} Nd5 {[%emt 0:01:01]} 12. Ne4 {[%emt 0:12:46]} Qb6 {[%emt 0:00:55]} 13. Bd3 {[%emt 0:17:41] Strongly threatening g6. Active counter play!} (13. Nxd6+ $2 Bxd6 14. exd6 Qb4+ 15. Qd2 Qxh4+ 16. Kd1 Qxg5 17. Qxg5 hxg5 $19) 13... hxg5 {[%emt 0:00:19] B96: Sicilian Najdorf: 6 Bg5 e6 7 f4, lines other than 7...Qb6 and 7...Be7.} (13... Qxb2 $2 14. g6 (14. exd6 hxg5 15. Rb1 Qg7 $15) (14. Nxd6+ $2 Bxd6 15. exd6 Qc3+ 16. Kf2 Qd4+ 17. Ke1 Qe5+ 18. Kf2 Qd4+ 19. Ke1 Qxh4+ $19) 14... Qb4+ 15. c3 Nxc3 16. gxf7+ Kd7 17. Qd2 $18) 14. Bxg5 {[%emt 0:01:30] Qf3 is the strong threat.} (14. Bf2 Qxb2 15. Nxd6+ Bxd6 16. exd6 Qe5+ 17. Kf1 Ne3+ 18. Bxe3 Qxe3 $17) 14... Qxb2 {[%emt 0:00:26]} 15. O-O {[%emt 0:11:51]} (15. exd6 f5 16. Be2 (16. Rb1 $2 Qe5 $19) 16... Qe5 17. d7+ Kxd7 $17) (15. Nxd6+ $2 Bxd6 16. exd6 Qe5+ 17. Be2 Rg8 $19) (15. Nf6+ $1 $14 Nxf6 16. Bxf6 Qc3+ 17. Kf1) 15... Qxe5 $15 {[%emt 0:00:51] Black is slightly better.} 16. h3 {[%emt 0:03:44]} (16. Qf3 $15 f5 17. Nf6+ Nxf6 18. Bxf6 Qxh2+ 19. Kf2) 16... f5 {[%emt 0:06:08]} 17. Qf3 {[%emt 0:02:12][%cal Oc2c4]} Ra7 {[%emt 0:07:50] [#] Prevents c4.} (17... fxe4 $2 18. Qf7#) (17... Be7 $142 18. Bxe7 Kxe7) 18. Nf6+ $146 {[%emt 0:06:34]} ({Predecessor:} 18. Nf2 Qg7 19. Bd2 e5 20. c4 Be6 21. Rab1 e4 22. Rb8+ Ke7 23. Bxe4 fxe4 24. Nxe4 Qd4+ 25. Kh1 Qxc4 26. Bg5+ Kd7 27. Rxf8 Rxf8 28. Qxf8 Qxe4 29. Qd8# {1-0 (29) Yoos,J (2424)-Ferguson,J (2237) Victoria 2001}) 18... Nxf6 $19 {[%emt 0:16:30]} 19. Qxc6+ {[%emt 0:00:56]} Bd7 $1 {[%emt 0:07:11]} 20. Qb6 {[%emt 0:00:01] [#] Against Qd4+} Ra8 {[%emt 0:04:08]} (20... Rxh3 $1 $19 {[%mdl 512]} 21. Bf4 {[#]} (21. Qxa7 $2 {too greedy.} Qh2+ 22. Kf2 Qg3+ 23. Kg1 Qh2+ 24. Kf2 Qg3+ 25. Kg1 Qxg5 $19) (21. gxh3 $2 Qg3+ 22. Kh1 Qxh3+ 23. Kg1 Qg3+ 24. Kh1 Qxg5 $19) 21... Rb7 $3 {[%mdl 512]} 22. Bxe5 Rxb6 23. Bxf6 Rg3) 21. Rae1 $15 {[%emt 0:00:43]} Nd5 {[%emt 0:03:41]} (21... Ne4 $15 22. Bxe4 fxe4) 22. Qb7 $1 $14 {[%emt 0:02:28]} Qd4+ {[%emt 0:00:22]} 23. Kh1 {[%emt 0:00:48][%cal Od3f5] Bxf5! would kill now. Chess con chili.} Rc8 $2 {[%emt 0:03:11][%mdl 8192] This costs Black the game.} (23... Ra7 $14 24. Bxf5 Be7 25. Bg6+ (25. Qb8+ Kf7 $17) 25... Kd8 26. Qb8+ Bc8 27. Qxd6+ Rd7) 24. Bxf5 $18 {[%emt 0:16:41][%cal Rf5g6] White is clearly winning.} Be7 {[%emt 0:21:47]} 25. Bxe6 {[%emt 0:00:00]} (25. Rxe6 $142 O-O 26. Qxd7) 25... Bxe6 {[%emt 0:11:17]} 26. Rxe6 {[%emt 0:00:00][%cal Rb7c8]} Rc7 {[%emt 0:03:03] [#]} 27. Qxc7 $3 {[%emt 0:00:00][%mdl 576] Weighted Error Value: White=0.32/Black=0.36} 1-0

[Event "ITT 1st Parada Jamundi 2022"]
[Site "Jamundi Valle"]
[Date "2022.12.07"]
[Round "4.11"]
[White "Argote Heredia, Valentina"]
[Black "Lopez Rayo, Isabella"]
[Result "1-0"]
[ECO "B22"]
[WhiteElo "2140"]
[BlackElo "1898"]
[Annotator "TA"]
[PlyCount "73"]
[EventDate "2022.12.05"]
[EventType "swiss"]
[EventCountry "COL"]
[SourceTitle "playchess.com"]
[Source "ChessBase"]
[SourceQuality "1"]
[TimeControl "5400+30"]

{[%evp 9,73,14,41,0,72,25,75,75,77,81,208,208,316,190,367,359,422,100,507,422,578,572,1312,1303,1193,1166,1146,760,745,421,431,358,355,292,279,285,309,331,335,318,284,219,456,438,457,411,940,935,993,1001,1538,1457,5602,1496,29989,29990,29992,29991,29991,29992,29992,29993,29993,29992,29992,29993]} 1. e4 {[%emt 0:00:03]} c5 {[%emt 0:00:06]} 2. c3 {[%emt 0:00:15]} d5 {[%emt 0:02:16]} 3. exd5 {[%emt 0:00:06]} Qxd5 {[%emt 0:00:08]} 4. d4 {[%emt 0:00:10]} Nc6 {[%emt 0:00:43]} 5. Nf3 {[%emt 0:00:38]} Bf5 {[%emt 0:00:24]} 6. Na3 {[%emt 0:02:51] B22: Sicilian: 2 c3.} O-O-O {[%emt 0:03:12]} (6... cxd4 $11 {remains equal.} 7. Nxd4 Nxd4 8. Qxd4 Qxd4 9. cxd4 a6) 7. Be3 {[%emt 0:04:47]} (7. Bc4 $16 Qe4+ 8. Be2) 7... e6 {[%emt 0:12:03]} (7... cxd4 $1 $11 8. Nxd4 e6) 8. Bc4 $16 {[%emt 0:12:12] White is better.} Qe4 {[%emt 0:02:43]} 9. O-O {[%emt 0:00:18] [#] Ng5 is the strong threat.} h6 $146 {[%emt 0:04:56] Prevents Ng5.} (9... cxd4 $16 10. cxd4 (10. Nxd4 Bxa3 11. bxa3 e5 $15) 10... Bg4) ({Predecessor:} 9... cxd4 10. cxd4 Bxa3 11. bxa3 Qc2 12. Qxc2 Bxc2 13. Rac1 Be4 14. Ng5 Bg6 15. Bb5 Nge7 {0-1 (36) Sahin,O (2146)-Posedaru,B (2327) Palic 2016}) 10. Qa4 $18 {[%emt 0:02:52]} Nf6 {[%emt 0:05:46]} (10... Nge7 $142 11. dxc5 Bh3) 11. Rfe1 {[%emt 0:02:30]} Bd6 {[%emt 0:21:52]} (11... Nd7 {was necessary.} 12. Bg5 Qxf3) 12. dxc5 {[%emt 0:02:42][%cal Bd4c5,Bc5c6][%mdl 32]} Bb8 {[%emt 0:00:50]} 13. Bg5 $2 {[%emt 0:05:30]} Qg4 {[%emt 0:03:11][%mdl 8192]} (13... hxg5 $16 {is more resistant.} 14. Rxe4 Bxe4) 14. h3 {[%emt 0:00:07]} Qh5 {[%emt 0:00:23] [#]} 15. Ba6 $1 {[%emt 0:00:19][%mdl 512]} Ne7 {[%emt 0:14:50] [#]} (15... Kd7 16. Bxf6) 16. c6 $1 {[%emt 0:02:45]} Rd5 {[%emt 0:07:16]} 17. Bxb7+ {[%emt 0:00:57]} Kd8 {[%emt 0:02:17]} 18. Bxf6 {[%emt 0:03:21]} gxf6 {[%emt 0:00:23]} 19. c7+ {[%emt 0:00:21]} Bxc7 {[%emt 0:00:07][%cal Oh8g8]} 20. Bxd5 {[%emt 0:00:14]} Nxd5 {[%emt 0:00:17]} 21. Qxa7 {[%emt 0:05:23]} Bxh3 {[%emt 0:03:24]} 22. Qa8+ {[%emt 0:02:37]} Ke7 {[%emt 0:00:26] ( -> ...Bxg2)} 23. Qxh8 {[%emt 0:00:41] And now Nb5 would win.} Qg4 {[%emt 0:03:50][%csl Gh3][%cal Rg4g2] [#]} 24. Rxe6+ $3 {[%emt 0:04:40]} fxe6 {[%emt 0:03:38][%csl Gh3][%cal Rg4g2]} 25. Ne1 {[%emt 0:00:13]} (25. Qxh6 $2 Qxg2#) 25... Bxg2 $2 {[%emt 0:02:37]} (25... Nf4 26. Qh7+ (26. Qxh6 $2 Bxg2 $19) 26... Kf8 27. Qxc7 Bxg2 28. Qxf4 Qxf4) 26. Nxg2 {[%emt 0:00:13]} ({Don't take} 26. Qh7+ Kf8 27. Nxg2 Qh5) 26... Nf4 {[%emt 0:00:13][%csl Gf4][%cal Rg4g2]} 27. Qa8 {[%emt 0:00:40]} h5 {[%emt 0:04:55]} (27... Nh3+ $142 28. Kf1 (28. Kh1 Nxf2+ 29. Kg1 Qe2 $11) 28... Qf5) 28. Qb7 {[%emt 0:02:24]} Kd8 {[%emt 0:01:05]} 29. Nb5 {[%emt 0:01:49]} Nh3+ {[%emt 0:00:32]} 30. Kf1 {[%emt 0:00:13]} Qc4+ {[%emt 0:00:17]} 31. Ke1 {[%emt 0:00:14]} Be5 {[%emt 0:00:40]} 32. Rd1+ {[%emt 0:00:37] White mates.} Ke8 {[%emt 0:00:06]} 33. Qd7+ {[%emt 0:00:18]} Kf8 {[%emt 0:00:05]} 34. Qd8+ {[%emt 0:00:46]} Kg7 {[%emt 0:00:37]} 35. Rd7+ {[%emt 0:00:07]} Kg6 {[%emt 0:00:41]} 36. Qg8+ {[%emt 0:00:08]} Kf5 {[%emt 0:00:05]} 37. Ne3+ {[%emt 0:00:51] Black got outplayed after the opening.   Weighted Error Value: White=0.76/Black=0.92} 1-0

[Event "ITT 1st Parada Jamundi 2022"]
[Site "Jamundi Valle"]
[Date "2022.12.07"]
[Round "4.12"]
[White "Pazos Gambarrotti, Plinio"]
[Black "Valdes Martinez, Miguel A."]
[Result "0-1"]
[ECO "A90"]
[WhiteElo "2083"]
[BlackElo "2104"]
[Annotator "NA RC"]
[PlyCount "114"]
[EventDate "2022.12.05"]
[EventType "swiss"]
[EventCountry "COL"]
[SourceTitle "playchess.com"]
[Source "ChessBase"]
[SourceQuality "1"]
[TimeControl "5400+30"]

1. d4 {[%emt 0:00:21]} d5 {[%emt 0:01:13]} 2. c4 {[%emt 0:00:04]} c6 {[%emt 0:00:14]} 3. Nf3 {[%emt 0:00:03]} e6 {[%emt 0:00:05]} 4. g3 {[%emt 0:00:38]} f5 {[%emt 0:00:12]} 5. Bg2 {[%emt 0:00:06]} Nf6 {[%emt 0:00:05]} 6. O-O {[%emt 0:00:13]} Bd6 {[%emt 0:00:23]} 7. Bg5 {[%emt 0:00:29]} h6 {[%emt 0:00:09]} 8. Bf4 {[%emt 0:00:34]} O-O {[%emt 0:00:21]} 9. Bxd6 {[%emt 0:00:27]} Qxd6 {[%emt 0:00:01]} 10. Ne5 {[%emt 0:00:08]} Nbd7 {[%emt 0:00:20]} 11. Nxd7 {[%emt 0:00:30]} Bxd7 {[%emt 0:00:17]} 12. Nd2 {[%emt 0:00:07]} Be8 {[%emt 0:03:43]} 13. Qc2 {[%emt 0:01:29]} Bh5 {[%emt 0:02:13]} 14. Nf3 {[%emt 0:00:08]} Bxf3 {[%emt 0:00:21]} 15. Bxf3 {[%emt 0:00:11]} Ne4 {[%emt 0:00:30]} 16. e3 {[%emt 0:00:09]} Qb4 {[%emt 0:01:59]} 17. Rfc1 {[%emt 0:00:59]} Qe7 {[%emt 0:05:04]} 18. Bg2 {[%emt 0:00:17]} h5 {[%emt 0:06:14]} 19. Qe2 {[%emt 0:02:01]} h4 {[%emt 0:03:10]} 20. Qh5 {[%emt 0:02:39]} hxg3 {[%emt 0:00:35]} 21. hxg3 {[%emt 0:00:09]} Rf6 {[%emt 0:00:16]} 22. Rc2 {[%emt 0:01:31]} Rh6 {[%emt 0:00:58]} 23. Qf3 {[%emt 0:00:21]} dxc4 {[%emt 0:13:19]} 24. Qf4 {[%emt 0:01:27]} Nd6 {[%emt 0:00:09]} 25. e4 {[%emt 0:00:20]} fxe4 {[%emt 0:06:22]} 26. Bxe4 {[%emt 0:01:45]} Rf8 {[%emt 0:00:43]} 27. Qe3 {[%emt 0:00:18]} Nxe4 {[%emt 0:00:12]} 28. Qxe4 {[%emt 0:00:03]} Qg5 {[%emt 0:00:03]} 29. Re1 {[%emt 0:03:19]} Qh5 {[%emt 0:00:51]} 30. Qg2 {[%emt 0:00:11]} Qa5 {[%emt 0:04:32]} 31. Qf1 {[%emt 0:01:37]} Qd5 {[%emt 0:00:43]} 32. Qg2 {[%emt 0:00:17]} Qa5 {[%emt 0:11:02]} 33. Qf1 {[%emt 0:00:19]} Qf5 {[%emt 0:00:08]} 34. Rce2 {[%emt 0:00:48]} Qd5 {[%emt 0:03:00]} 35. Qg2 {[%emt 0:00:14]} Qxd4 {[%emt 0:00:03]} 36. Qe4 {[%emt 0:00:40]} Qd5 {[%emt 0:06:43]} 37. Rc2 {[%emt 0:00:33]} Qh5 {[%emt 0:05:15]} 38. Qg2 {[%emt 0:00:50]} b5 {[%emt 0:04:21]} 39. b3 {[%emt 0:00:36]} cxb3 {[%emt 0:02:00]} 40. axb3 {[%emt 0:00:07]} Qd5 {[%emt 0:00:03]} 41. Rxc6 {[%emt 0:01:13]} Qxb3 {[%emt 0:00:18]} 42. Ra6 {[%emt 0:01:24]} Rhf6 {[%emt 0:05:52]} 43. Rf1 {[%emt 0:04:03]} R6f7 {[%emt 0:04:51]} 44. Qe4 {[%emt 0:01:01]} Qd5 {[%emt 0:00:39]} 45. Qe3 {[%emt 0:01:13]} Rf6 {[%emt 0:04:31]} 46. Rxa7 {[%emt 0:00:58]} Rh6 {[%emt 0:00:19]} 47. f3 {[%emt 0:00:10]} Qh5 {[%emt 0:00:09]} 48. Kf2 {[%emt 0:00:38]} Rxf3+ {[%emt 0:04:44]} 49. Qxf3 {[%emt 0:00:08]} Qc5+ {[%emt 0:00:27]} 50. Qe3 {[%emt 0:02:11]} Rh2+ {[%emt 0:02:30]} 51. Kf3 {[%emt 0:00:15]} Qh5+ {[%emt 0:00:01]} 52. g4 {[%emt 0:00:35]} Rh3+ {[%emt 0:00:12]} 53. Kf2 {[%emt 0:01:13]} Qh4+ {[%emt 0:00:21]} 54. Ke2 {[%emt 0:00:10]} Rxe3+ {[%emt 0:01:00]} 55. Kxe3 {[%emt 0:00:03]} Qg3+ {[%emt 0:00:16]} 56. Kd2 {[%emt 0:01:18]} Qg2+ {[%emt 0:00:47]} 57. Ke1 {[%emt 0:00:03]} Qe4+ {[%emt 0:00:01]} 0-1

[Event "ITT 1st Parada Jamundi 2022"]
[Site "Jamundi Valle"]
[Date "2022.12.07"]
[Round "4.13"]
[White "Gonzalez Velasco, Leandro"]
[Black "Mogollon Tobar, Nicolle Julieth"]
[Result "0-1"]
[ECO "C06"]
[WhiteElo "1915"]
[BlackElo "1840"]
[Annotator "TA"]
[PlyCount "90"]
[EventDate "2022.12.05"]
[EventType "swiss"]
[EventCountry "COL"]
[SourceTitle "playchess.com"]
[Source "ChessBase"]
[SourceQuality "1"]
[TimeControl "5400+30"]

{[%evp 13,90,29,36,43,90,0,-9,-16,11,-121,-125,-209,-208,-197,-170,-192,-197,-179,159,151,148,63,51,0,0,0,0,0,0,0,0,0,0,0,16,12,35,25,77,0,0,-45,-54,-91,-93,-94,0,-41,-50,-95,-38,-617,-625,-572,-501,-639,-628,-624,-616,-847,-834,-811,-763,-1177,-1172,-1131,-1120,-1208,-747,-29992,-1192,-29989,-29990,-29990,-29990,-29990,-29989,-29996,-29997]} 1. e4 {[%emt 0:00:23]} e6 {[%emt 0:00:05]} 2. d4 {[%emt 0:00:11]} d5 {[%emt 0:00:05]} 3. Nd2 {[%emt 0:00:17]} Be7 {[%emt 0:00:11]} 4. Bd3 {[%emt 0:00:51]} Nf6 {[%emt 0:00:34]} 5. e5 {[%emt 0:00:48]} Nfd7 {[%emt 0:00:06]} 6. Ne2 {[%emt 0:00:27]} c5 {[%emt 0:00:36]} 7. c3 {[%emt 0:00:27]} Nc6 {[%emt 0:00:30]} 8. O-O {[%emt 0:00:52] C06: French Tarrasch: 3...Nf6 4 e5 Nfd7 5 Bd3 main lines.} g5 {[%emt 0:04:28] [#]} (8... O-O $14) 9. g4 $146 {[%emt 0:27:20]} (9. b3 $16) ({Predecessor:} 9. Re1 h5 10. a3 h4 11. b4 cxd4 12. cxd4 Qb6 13. Nb3 g4 14. Be3 a5 15. b5 Nd8 {1-0 (33) Schekachikhin,M (2423)-Ahn,H (2303) Chess.com INT 2022}) 9... h5 $11 {[%emt 0:09:46]} 10. gxh5 {[%emt 0:01:22] The position is equal.} Rxh5 {[%emt 0:00:34]} (10... Qb6 $5 {[%cal Rc5d4]}) 11. Ng3 {[%emt 0:02:51]} (11. f4 $11) 11... Rh8 $17 {[%emt 0:01:57]} 12. Nf3 {[%emt 0:09:52]} (12. Ne2 $17 {might work better.}) 12... cxd4 $19 {[%emt 0:23:03]} (12... g4 13. Ne1 cxd4 14. cxd4) 13. cxd4 {[%emt 0:00:28]} g4 {[%emt 0:00:47]} 14. Ne1 {[%emt 0:00:33]} Nxd4 {[%emt 0:01:03]} 15. Qxg4 {[%emt 0:03:08]} Rh4 $2 {[%emt 0:05:00]} (15... Nxe5 16. Qxd4 Bf6 17. Bg5 $1 $18 {[%mdl 512]}) (15... Bc5 $1 $19 16. Ne2 Nxe5) 16. Qg8+ $16 {[%emt 0:03:34]} Nf8 {[%emt 0:00:48]} 17. Be3 {[%emt 0:01:59]} ({White should play} 17. Kh1 $1 $16) 17... Qc7 $14 {[%emt 0:10:44]} 18. Rc1 {[%emt 0:26:58]} ({Better is} 18. Qg7 $14) 18... Qxe5 $11 {[%emt 0:03:38] White must now prevent ...Bd7.} 19. Bxd4 {[%emt 0:00:10][%mdl 64] Remove Defender} Qxd4 {[%emt 0:00:42]} (19... Rxd4 20. Nf3 Qf6 21. Nxd4 Qxd4 22. Bb5+ Bd7 23. Bxd7+ Kxd7 24. Qxf7 $16) 20. Bb5+ {[%emt 0:01:51]} (20. Rc7 $2 Qf6 21. Ng2 Rh8 $19) 20... Bd7 {[%emt 0:01:35]} 21. Nf3 $1 {[%emt 0:05:32][%csl LRd4,LRh4]} Qh8 {[%emt 0:01:54]} 22. Bxd7+ {[%emt 0:00:23]} Kxd7 {[%emt 0:00:02]} 23. Qxf7 {[%emt 0:00:40][%cal Oc1c7] aiming for Rc7+!} Rh7 {[%emt 0:05:48] Dancing on a razor blade.} (23... Qh7 $5 {[%cal Rh7f7]} 24. Ne5+ Kd8 $11) 24. Qf4 {[%emt 0:00:31]} Bd6 {[%emt 0:00:34] Against Rc7+} (24... Qf6 $5 {[%cal Rf6f4]} 25. Qc7+ Ke8 26. Qxb7 Rd8 $14) 25. Qa4+ {[%emt 0:01:11]} Ke7 {[%emt 0:03:14][%cal Of8g6] [#]} 26. Qb3 {[%emt 0:02:58]} (26. Rfe1 $1 $16 {Threatens to win with Nf5+.} Qf6 27. Rc3 (27. Qb5 Kd8 $15)) 26... Kd8 {[%emt 0:03:35]} 27. Rfe1 {[%emt 0:03:44]} (27. Ng5 $5 {[%cal Rg5h7]} Re7 28. Qf3 $11) 27... Qf6 {[%emt 0:02:04] Inhibits Ng5.} 28. Qd3 {[%emt 0:01:43]} Rf7 {[%emt 0:02:21]} (28... Qxb2 29. Nd4 Rd7 30. Qe3 $16 (30. Nxe6+ Nxe6 31. Qg6 Re7 $11)) 29. Re3 {[%emt 0:03:24]} (29. Rc3 $2 Bb4 30. Re3 (30. Nh5 $2 Qf5 $19) 30... Bxc3 31. bxc3 Kc7 $19) 29... Nd7 {[%emt 0:03:43]} (29... Bxg3 30. hxg3 Rc8 31. Rxc8+ Kxc8 32. Qd2 $16) (29... Qxb2 $17 30. Rf1 Rc8) 30. Rce1 {[%emt 0:00:30]} (30. Nd4 $5 {[%cal Rd4e6]} Ne5 31. Qe2 $11) 30... Nc5 $36 {[%emt 0:02:24][%mdl 2048] Black is more active.} (30... Qxb2 $2 31. Ng5 Qxf2+ 32. Kh1 Bxg3 33. hxg3 $18) 31. Qd1 {[%emt 0:00:30] And now b4 would win.} a5 {[%emt 0:04:40] Black is more active.} (31... Qxb2 $17 {Strongly threatening ...Rf4.} 32. Rxe6 Nxe6 33. Qxd5 Rd7 34. Qxe6 (34. Rxe6 $2 Qxf2+ 35. Kxf2 Bxg3+ 36. Kxg3 Rxd5 $19) 34... Rc8) 32. Rxe6 $2 {[%emt 0:00:30][%mdl 8192] Now White is beyond hope.} Nxe6 $19 {[%emt 0:00:22]} 33. Qxd5 {[%emt 0:00:27]} Nc7 {[%emt 0:01:09]} ({Stronger than} 33... Qxf3 34. Qxd6+ (34. Qxe6 {leads to mate.} Qxf2+ 35. Kh1 Qf3+ 36. Kg1 Bc5+) 34... Rd7 35. Qxe6 $11) 34. Qd3 {[%emt 0:00:34]} Ra6 {[%emt 0:01:10]} 35. Kg2 {[%emt 0:00:27]} Ne6 {[%emt 0:00:45] Hoping for ...Nf4+.} 36. Qe4 {[%emt 0:00:32]} Nf4+ {[%emt 0:01:26]} 37. Kf1 {[%emt 0:00:10]} Re7 {[%emt 0:00:34]} ({Not} 37... Qxb2 38. Qe8+ Kc7 39. Qxf7+ Kb6 40. Ne4 $14) 38. Qc4 {[%emt 0:00:43]} Rxe1+ {[%emt 0:01:19]} 39. Nxe1 {[%emt 0:00:05]} Rc6 {[%emt 0:02:16]} 40. Qb5 {[%emt 0:00:28]} Bb4 {[%emt 0:03:38] ( -> ...Rc1)} 41. Ne4 {[%emt 0:01:00] [#]} Qh6 {[%emt 0:01:07]} (41... Rc1 $142 $1 42. Qd5+ Nxd5 43. Kg2 Qf4 44. h3 Qxe4+ 45. Nf3 Nf4+ 46. Kg3 Ne2+ 47. Kg2 Rg1+ 48. Kh2 Qf4#) 42. Ng5 {[%emt 0:00:33]} Qxh2 {[%emt 0:00:31][%cal Rh2h1] Black mates.} 43. Nf7+ {[%emt 0:00:31]} Kc8 {[%emt 0:00:25][%cal Rh2h1]} 44. Qf5+ {[%emt 0:00:26]} Re6 {[%emt 0:00:44][%cal Rh2h1]} 45. Qc2+ {[%emt 0:00:34]} Kb8 {[%emt 0:00:06] Weighted Error Value: White=0.91/Black=0.30} 0-1